lending/lending_fUSD_20240128
["ID","MTS","AMOUNT","RATE_DAILY","PERIOD"]
[312898091,1706436707767,-958.18578073,0.0002299,2]
[312898092,1706436707789,-533.3554065,0.00022998,2]
[312898093,1706436707813,-2763.58903211,0.00022998,2]
[312898094,1706436707836,-292.183463,0.00022999,2]
[312898095,1706436707861,-399261.87178617,0.00023,2]
[312898096,1706436707883,-122272.01678157,0.00023,2]
[312898102,1706437006080,299.99,0.00023,7]
[312898103,1706437186130,309.64,0.00021012,2]
[312898104,1706437602090,23880.0,0.00022088,2]
[312898105,1706437639693,294.15,0.00020147,2]
[312898106,1706437639894,294.15,0.00022411,2]
[312898113,1706437766826,250.0,0.00022163,2]
[312898114,1706437769804,-150.0,0.00022556,2]
[312898115,1706437769836,-500.0,0.00022558,2]
[312898116,1706437769868,-3867.31566285,0.00022596,2]
[312898117,1706437769895,-4166.64,0.00022597,2]
[312898118,1706437769926,-155.1,0.00022628,2]
[312898119,1706437769954,-155.1,0.00022726,2]
[312898120,1706437769985,-150.0,0.0002273,2]
[312898121,1706437770012,-2104.65,0.00022731,2]
[312898122,1706437770044,-5820.1921869,0.00022768,2]
[312898123,1706437770076,-4630.81540604,0.00022769,2]
[312898124,1706437770099,-499.99,0.00022769,2]
[312898125,1706437770126,-21406.19674421,0.0002277,2]
[312898128,1706437804376,208.0,0.00022179,2]
[312898132,1706437831693,-165.59931597,0.00022716,2]
[312898133,1706437831703,-146.46136724,0.0002277,2]
[312898134,1706437831715,-381.79850293,0.0002277,2]
[312898135,1706437831730,-2100.36563635,0.0002277,2]
[312898136,1706437831740,-500.0,0.00022816,2]
[312898137,1706437831750,-500.0,0.00022816,2]
[312898138,1706437831760,-155.1,0.00022825,2]
[312898139,1706437831770,-800.0,0.0002285,2]
[312898140,1706437831780,-3873.71011294,0.00022899,2]
[312898141,1706437831793,-150.0,0.00022899,2]
[312898142,1706437831803,-3629.9431,0.000229,2]
[312898143,1706437831813,-11335.8035,0.000229,2]
[312898144,1706437831822,-1000.0,0.000229,2]
[312898145,1706437831833,-299.6565,0.000229,2]
[312898146,1706437831843,-487.0463,0.000229,2]
[312898147,1706437831852,-6284.3225,0.000229,2]
[312898148,1706437831862,-2557.3714,0.000229,2]
[312898149,1706437831873,-5000.0,0.000229,2]
[312898150,1706437831884,-166.02288615,0.000229,2]
[312898151,1706437831893,-151.54077473,0.000229,2]
[312898152,1706437831903,-559.80242951,0.000229,2]
[312898153,1706437831913,-4629.7588,0.000229,2]
[312898154,1706437831923,-155.1,0.00022923,2]
[312898155,1706437831932,-1744.5824881,0.00022959,2]
[312898156,1706437831944,-359.03835404,0.00022959,2]
[312898157,1706437831956,-162.18915786,0.00022959,2]
[312898158,1706437831965,-323.38225902,0.00022999,2]
[312898159,1706437831975,-2229.12266074,0.00023,2]
[312898160,1706437831987,-438.73888158,0.00023,2]
[312898161,1706437831999,-1098.7530309,0.00023,2]
[312898162,1706437832010,-459.2369133,0.00023,2]
[312898164,1706437832027,-1270.80557788,0.00023,2]
[312898166,1706437832052,-7354.72394105,0.00023,2]
[312898167,1706437832064,-3320.74165696,0.00023,2]
[312898169,1706437832076,-29027.10523262,0.00023,2]
[312898170,1706437832087,-1496.61094832,0.00023,2]
[312898171,1706437832098,-793.13957544,0.00023,2]
[312898174,1706437837751,-263.85947574,0.00023,2]
[312898175,1706437837779,-2531570.94576529,0.00023,2]
[312898176,1706437837788,-2000.0,0.00023,2]
[312898177,1706437837801,-200.0,0.00023,2]
[312898178,1706437837810,-2166.22,0.00023,2]
[312898179,1706437837819,-155.1,0.00023021,2]
[312898180,1706437837829,-155.1,0.00023119,2]
[312898181,1706437837838,-155.1,0.00023218,2]
[312898182,1706437837847,-155.1,0.00023316,2]
[312898183,1706437837856,-155.1,0.00023414,2]
[312898184,1706437837865,-155.1,0.00023512,2]
[312898185,1706437837875,-155.1,0.00023611,2]
[312898186,1706437837885,-155.1,0.00023709,2]
[312898187,1706437837895,-155.1,0.00023807,2]
[312898188,1706437837904,-500.0,0.00023893,2]
[312898189,1706437837913,-151.2,0.00023905,2]
[312898190,1706437837923,-201.33034174,0.00024,2]
[312898191,1706437837932,-2086.21,0.00024111,2]
[312898192,1706437837941,-1008.82211059,0.00024178,3]
[312898193,1706437837950,-1290.59,0.00024211,2]
[312898194,1706437837959,-200.0,0.00024211,2]
[312898195,1706437837969,-2000.0,0.00024218,2]
[312898196,1706437837978,-167.0,0.00024297,2]
[312898197,1706437837987,-169.80948299,0.000243,2]
[312898198,1706437837996,-5280.81,0.00024384,2]
[312898199,1706437838006,-800.0,0.00024493,2]
[312898200,1706437838015,-168.96,0.0002453,2]
[312898201,1706437838027,-250.0,0.00024658,2]
[312898202,1706437838038,-294.15,0.00024675,2]
[312898203,1706437838048,-220.95,0.00024885,2]
[312898204,1706437838057,-4288.54662377,0.000249,2]
[312898206,1706437838066,-268.74,0.00024953,2]
[312898208,1706437838075,-500.0,0.00024969,2]
[312898210,1706437838085,-937.37944616,0.00025,2]
[312898212,1706437838094,-168.036618,0.00025,2]
[312898214,1706437838103,-202.79836122,0.00025,2]
[312898216,1706437838113,-1589.48873199,0.00025,2]
[312898218,1706437838122,-1903.74995284,0.00025,2]
[312898220,1706437838131,-3011.0131985,0.00025,2]
[312898222,1706437838140,-304.11862422,0.00025,2]
[312898224,1706437838149,-550.0,0.00025,3]
[312898226,1706437838158,-500.0,0.00025166,2]
[312898228,1706437838167,-210.0,0.00025189,2]
[312898230,1706437838177,-1098.0,0.000252,2]
[312898232,1706437838187,-151.2,0.00025275,2]
[312898234,1706437838196,-8179.147,0.00025285,2]
[312898236,1706437838205,-7417.603,0.00025285,2]
[312898238,1706437838215,-2929.24,0.00025285,2]
[312898240,1706437838226,-2309.696,0.00025285,2]
[312898242,1706437838238,-392.913,0.00025285,2]
[312898244,1706437838247,-269.783,0.00025285,2]
[312898246,1706437838256,-1038.758,0.00025285,2]
[312898248,1706437838265,-842.0,0.00025285,2]
[312898250,1706437838274,-451.639,0.00025285,2]
[312898252,1706437838283,-4306.70858118,0.000253,2]
[312898256,1706437838303,-1046.62819213,0.000253,2]
[312898258,1706437838315,-163.66322669,0.000253,2]
[312898260,1706437838324,-492.92240634,0.00025367,2]
[312898262,1706437838335,-36.07759366,0.00025367,2]
[312898264,1706437838345,-233.367,0.00025367,2]
[312898266,1706437838355,-516.52296289,0.00025367,2]
[312898269,1706437838374,-864.11403711,0.00025367,2]
[312898271,1706437838384,-704.0,0.00025367,2]
[312898273,1706437838393,-1241.129,0.00025367,2]
[312898275,1706437838402,-300.15259479,0.00025367,2]
[312898279,1706437838429,-446.04655466,0.00025367,2]
[312898281,1706437838440,-738.614795,0.00025367,2]
[312898284,1706437838454,-465.24205555,0.00025367,2]
[312898286,1706437838464,-598.567,0.00025367,2]
[312898288,1706437838473,-13.60913385,0.00025367,2]
[312898498,1706437840309,-252.47,0.000235,2]
[312898500,1706437840318,-387.571,0.00025285,2]
[312898558,1706437840878,-566.913,0.00025285,2]
[312898560,1706437840888,-1868.491,0.00025285,2]
[312898562,1706437840897,-228.05486615,0.00025367,2]
[312898564,1706437840906,-450.661,0.00025367,2]
[312898566,1706437840915,-999.0,0.00025367,2]
[312898568,1706437840924,-151.021,0.00025367,2]
[312898570,1706437840933,-446.251,0.00025367,2]
[312898572,1706437840942,-1138.0,0.00025367,2]
[312898574,1706437840952,-942.2,0.00025367,2]
[312898576,1706437840961,-2438.772,0.00025367,2]
[312898578,1706437840970,-4210.767,0.00025367,2]
[312898580,1706437840979,-5621.551,0.00025367,2]
[312898582,1706437840988,-1378.098,0.00025367,2]
[312898584,1706437840996,-19862.306,0.00025367,2]
[312898586,1706437841006,-1290.59,0.00025422,2]
[312898588,1706437841015,-274.57984276,0.0002549,2]
[312898590,1706437841026,-167.0,0.00025633,2]
[312898592,1706437841035,-800.0,0.00025706,2]
[312898594,1706437841045,-2086.21,0.00025755,2]
[312898596,1706437841053,-268.74,0.00025835,2]
[312898598,1706437841063,-200.0,0.00025949,2]
[312898600,1706437841073,-201.47391818,0.00026,2]
[312898602,1706437841082,-500.0,0.00026046,2]
[312898604,1706437841091,-150.0,0.00026079,2]
[312898606,1706437841100,-1000.0,0.00026575,2]
[312898608,1706437841109,-1290.59,0.00026633,2]
[312898610,1706437841118,-268.74,0.00026718,2]
[312898612,1706437841127,-200.0,0.00026896,2]
[312898613,1706437841136,-294.15,0.00026939,2]
[312898614,1706437841146,-167.0,0.0002697,2]
[312898615,1706437841155,-417.03641631,0.00027,2]
[312898616,1706437841164,-600.0,0.00027,3]
[312898617,1706437841173,-500.0,0.00027122,2]
[312898618,1706437841182,-1564.46,0.00027123,2]
[312898619,1706437841191,-200.0,0.00027238,2]
[312898621,1706437841200,-444.89898447,0.00027393,2]
[312898622,1706437841209,-176.34,0.00027397,2]
[312898624,1706437841219,-63606.0,0.00027397,4]
[312898626,1706437841229,-2086.21,0.00027399,2]
[312898629,1706437841238,-500.0,0.00027515,2]
[312898630,1706437841247,-268.74,0.000276,2]
[312898633,1706437841258,-1170.78,0.00027671,2]
[312898637,1706437841267,-268.0,0.00027708,2]
[312898640,1706437841277,-1290.59,0.00027843,2]
[312898643,1706437841286,-485.0,0.00027867,5]
[312898645,1706437841295,-73628.20367781,0.00028,2]
[312898647,1706437841308,-851.56,0.00028,2]
[312898650,1706437841324,-55144.003002,0.00028,2]
[312898652,1706437841333,-500.0,0.00028199,2]
[312898654,1706437841342,-8120.0,0.00028285,2]
[312898656,1706437841351,-7374.0,0.00028285,2]
[312898658,1706437841360,-2912.0,0.00028285,2]
[312898660,1706437841369,-2279.0,0.00028285,2]
[312898662,1706437841378,-387.0,0.00028285,2]
[312898664,1706437841387,-1032.0,0.00028285,2]
[312898666,1706437841396,-838.0,0.00028285,2]
[312898668,1706437841405,-451.0,0.00028285,2]
[312898670,1706437841414,-948.0,0.00028285,2]
[312898672,1706437841423,-167.0,0.00028307,2]
[312898674,1706437841432,-314.532,0.00028367,2]
[312898676,1706437841440,-215.0,0.00028367,2]
[312898678,1706437841449,-1252.0,0.00028367,2]
[312898680,1706437841458,-286.81,0.00028367,2]
[312898681,1706437841467,-1233.0,0.00028367,2]
[312898683,1706437841476,-1939.0,0.00028367,2]
[312898685,1706437841485,-595.0,0.00028367,2]
[312898687,1706437841493,-236.0,0.00028367,2]
[312898689,1706437841502,-427.0,0.00028367,2]
[312898692,1706437841512,-999.0,0.00028367,2]
[312898694,1706437841521,-320.0,0.00028367,2]
[312898696,1706437841530,-487.014,0.00028367,2]
[312898698,1706437841539,-861.0,0.00028367,2]
[312898699,1706437841548,-2429.0,0.00028367,2]
[312898701,1706437841557,-4187.0,0.00028367,2]
[312898703,1706437841566,-5595.0,0.00028367,2]
[312898706,1706437841575,-1361.0,0.00028367,2]
[312898708,1706437841584,-7934.27398159,0.00028367,2]
[312898710,1706437841600,-1159.09011139,0.00028367,2]
[312898713,1706437841620,-10659.63590702,0.00028367,2]
[312898715,1706437841630,-268.74,0.00028483,2]
[312898718,1706437841639,-800.0,0.00028562,2]
[312898720,1706437841650,-1170.78,0.00028695,2]
[312898722,1706437841660,-151.54077473,0.00028985,2]
[312898734,1706437841763,-650.0,0.00029,3]
[312898736,1706437841776,-1000.0,0.00029,2]
[312898738,1706437841786,-2086.21,0.00029043,2]
[312898740,1706437841798,-1290.59,0.00029054,2]
[312898743,1706437841807,-200.0,0.00029082,2]
[312898745,1706437841817,-294.15,0.00029203,2]
[312898747,1706437841825,-500.0,0.00029275,2]
[312898749,1706437841835,-268.74,0.00029365,2]
[312898750,1706437841844,-1170.78,0.00029719,2]
[312898753,1706437841853,-208.0,0.00029744,13]
[312898755,1706437841862,-500.0,0.00029865,2]
[312898757,1706437841872,-228.79385703,0.00029999,2]
[312898759,1706437841882,-386.20962886,0.00029999,2]
[312898761,1706437841891,-212.73878423,0.00029999,2]
[312898763,1706437841901,-1966.90599291,0.0003,2]
[312898765,1706437841910,-3558.89651159,0.0003,4]
[312898767,1706437841920,-438.66078707,0.0003,4]
[312898769,1706437841929,-695.93335959,0.0003,2]
[312898771,1706437841938,-9659.87377421,0.0003,2]
[312898773,1706437841950,-96216.15926049,0.0003,4]
[312898775,1706437841959,-155.0,0.0003,2]
[312898777,1706437841969,-256.99678668,0.0003,4]
[312898779,1706437841978,-1810.6484529,0.0003,4]
[312898781,1706437841987,-907.74400073,0.0003,4]
[312898783,1706437841996,-268.74,0.00030248,2]
[312898785,1706437842005,-200.0,0.00030264,2]
[312898787,1706437842014,-500.0,0.00030352,2]
[312898789,1706437842023,-2086.21,0.00030687,2]
[312898791,1706437842034,-1170.78,0.00030743,2]
[312898793,1706437842043,-700.0,0.00031,3]
[312898795,1706437842053,-176.34,0.0003105,2]
[312898797,1706437842062,-236.0,0.00031367,2]
[312898799,1706437842071,-427.0,0.00031367,2]
[312898801,1706437842080,-800.0,0.00031418,2]
[312898803,1706437842090,-500.0,0.00031428,2]
[312898806,1706437842100,-294.15,0.00031467,2]
[312898808,1706437842109,-1770.18024179,0.000317,2]
[312898810,1706437842118,-1170.78,0.00031767,2]
[312898811,1706437842127,-200.0,0.000318,2]
[312898814,1706437842138,-37161.87914818,0.000318,3]
[312898816,1706437842149,-831.8685269,0.000318,3]
[312898819,1706437842169,-753.6799968,0.00028285,2]
[312898864,1706437842786,-1105.3200032,0.00028285,2]
[312898865,1706437842797,-175524.12536892,0.000318,3]
[312898866,1706437842808,-906.03082733,0.00032,2]
[312898867,1706437842818,-500.0,0.00032199,2]
[312898868,1706437842827,-500.0,0.00032215,2]
[312898869,1706437842836,-200.0,0.00032215,3]
[312898870,1706437842847,-200.0,0.00032215,2]
[312898871,1706437842856,-2086.21,0.00032331,2]
[312898872,1706437842866,-559.80242949,0.00032399,2]
[312898874,1706437842877,-2770.72302036,0.0003278,14]
[312898876,1706437842887,-7200.26467197,0.0003278,5]
[312898878,1706437842897,-500.0,0.0003297,2]
[312898880,1706437842906,-750.0,0.00033,3]
[312898882,1706437842916,-200.0,0.00033291,2]
[312898884,1706437842925,-2002.19888372,0.000333,4]
[312898886,1706437842934,-1000.0,0.000333,2]
[312898888,1706437842943,-901.0,0.000333,2]
[312898890,1706437842952,-500.0,0.0003356,2]
[312898892,1706437842961,-294.15,0.00033731,2]
[312898894,1706437842970,-500.0,0.00033741,2]
[312898896,1706437842979,-507.45614282,0.00034,4]
[312898898,1706437842988,-200.0,0.00034009,2]
[312898900,1706437842997,-800.0,0.00034275,2]
[312898902,1706437843006,-427.0,0.00034367,2]
[312898904,1706437843015,-500.0,0.00034512,2]
[312898906,1706437843024,-434.66039764,0.00034698,2]
[312898908,1706437843033,-176.34,0.00034703,2]
[312898910,1706437843042,-203.39,0.000348,2]
[312898912,1706437843051,-203.39,0.000348,2]
[312898914,1706437843060,-203.39,0.000348,2]
[312898916,1706437843069,-203.39,0.000348,2]
[312898917,1706437843078,-203.39,0.000348,2]
[312898919,1706437843088,-203.39,0.000348,2]
[312898920,1706437843097,-203.39,0.000348,2]
[312898921,1706437843106,-203.39,0.000348,2]
[312898922,1706437843115,-203.39,0.000348,2]
[312898923,1706437843125,-203.39,0.000348,2]
[312898924,1706437843134,-203.39,0.000348,2]
[312898925,1706437843143,-203.39,0.000348,2]
[312898926,1706437843152,-203.39,0.000348,2]
[312898927,1706437843162,-203.39,0.000348,2]
[312898928,1706437843171,-203.39,0.000348,2]
[312898929,1706437843181,-203.39,0.000348,2]
[312898930,1706437843190,-203.39,0.000348,2]
[312898931,1706437843199,-203.39,0.000348,2]
[312898932,1706437843209,-203.39,0.000348,2]
[312898933,1706437843219,-203.39,0.000348,2]
[312898934,1706437843228,-541.71110371,0.000349,2]
[312898935,1706437843237,-541.71110366,0.000349,2]
[312898936,1706437843247,-541.71110366,0.000349,2]
[312898937,1706437843257,-55555.0,0.000349,3]
[312898938,1706437843267,-500.0,0.00034905,2]
[312898939,1706437843277,-159.80759569,0.00034999,2]
[312898940,1706437843286,-47536.7034153,0.00035,2]
[312898941,1706437843297,-278.23520205,0.00035,2]
[312898942,1706437843318,-541.88479081,0.00035,2]
[312898943,1706437843329,-97666.0,0.00035,2]
[312898944,1706437843341,-600.02619236,0.00035,2]
[312898945,1706437843373,-1078.64225899,0.00035,2]
[312898946,1706437843384,-1367.80188262,0.00035,2]
[312898947,1706437843395,-722.30555363,0.00035,2]
[312898948,1706437843407,-409.79455518,0.00035,2]
[312898949,1706437843418,-5512.38230237,0.00035,2]
[312898950,1706437843448,-1192.9975616,0.00035,2]
[312898951,1706437843460,-3827.92871815,0.00035,2]
[312898952,1706437843483,-263.52169311,0.00035,2]
[312898965,1706437845764,-736.19737716,0.00025603,2]
[312898966,1706437845981,-652.38094598,0.00025603,2]
[312898967,1706437846043,-1375.99854188,0.00025603,2]
[312898968,1706437846057,-15.09413498,0.00025603,2]
[312898969,1706437846066,-464.90586518,0.00035,2]
[312898970,1706437846078,-1461.814397,0.00035,2]
[312898971,1706437846090,-854.80944955,0.00035,2]
[312898972,1706437846101,-21278.5,0.00035,2]
[312898974,1706437846113,-1467.87505136,0.00035,2]
[312898977,1706437846129,-520.27750325,0.00035,2]
[312898980,1706438039509,169.13,0.0002977,120]
[312899000,1706438539395,-2952.88969151,0.00022658,2]
[312899001,1706438539415,-698.29129307,0.00022659,2]
[312899002,1706438539435,-281.96751205,0.0002266,2]
[312899003,1706438539456,-533.3554065,0.0002266,2]
[312899004,1706438539476,-177.22459552,0.00022661,2]
[312899005,1706438539495,-177.22459551,0.00022731,2]
[312899006,1706438539515,-300.0,0.00022758,2]
[312899007,1706438539536,-150.0,0.00022758,2]
[312899008,1706438539555,-150.0,0.00022758,2]
[312899009,1706438539574,-13039.11955323,0.00022759,2]
[312899010,1706438539595,-7714.92735261,0.00022759,2]
[312899030,1706438761955,155.0,0.00021612,2]
[312899032,1706438781945,165.90828689,0.00021612,2]
[312899034,1706438807063,177.22459551,0.00022422,2]
[312899053,1706439033697,-296.08247319,0.00022503,2]
[312899055,1706439033707,-533.3554065,0.00022504,2]
[312899058,1706439033716,-24394.97966401,0.00022504,2]
[312899059,1706439033725,-279.82822608,0.00022505,2]
[312899060,1706439033735,-12067.2263728,0.00022505,2]
[312899061,1706439033812,-384.3878097,0.00022505,2]
[312899062,1706439033823,-587.50537073,0.00022505,2]
[312899063,1706439033832,-606.54462927,0.00022506,2]
[312899064,1706439033844,-393.45537073,0.00022506,2]
[312899065,1706439033853,-1318.53712111,0.00022506,2]
[312899066,1706439033927,-1326.90572338,0.00022506,2]
[312899067,1706439033938,-307.44684702,0.00022506,2]
[312899068,1706439033948,-504.97588228,0.00022506,2]
[312899069,1706439033960,-150.0,0.00022513,2]
[312899070,1706439033969,-3411.71792169,0.0002252,2]
[312899088,1706439038300,-632.59771759,0.00022503,2]
[312899089,1706439038312,-988.1124804,0.00022503,2]
[312899090,1706439038324,-323.17875603,0.00022503,2]
[312899091,1706439038390,-380.49240652,0.00022503,2]
[312899092,1706439038400,-1186.81542883,0.0002252,2]
[312899093,1706439038409,-494.47329966,0.00022522,2]
[312899094,1706439038418,-288.45273763,0.0002275,2]
[312899095,1706439038430,-269.00023524,0.0002275,2]
[312899096,1706439038439,-354.05818019,0.00022751,2]
[312899097,1706439038448,-2166.22,0.00022751,2]
[312899098,1706439038457,-255.54,0.00022852,2]
[312899099,1706439038466,-175.60426236,0.00022891,2]
[312899100,1706439038475,-5804.8067,0.000229,2]
[312899101,1706439038486,-2736.06,0.000229,2]
[312899102,1706439038495,-499.99,0.000229,2]
[312899103,1706439038504,-201.33034174,0.00024,2]
[312899104,1706439038513,-1098.0,0.000247,2]
[312899105,1706439038522,-5396.0,0.000247,2]
[312899106,1706439038531,-509.32,0.00024724,2]
[312899107,1706439038540,-486.68,0.00024753,2]
[312899108,1706439038549,-250.0,0.00024779,2]
[312899109,1706439038557,-723.64511106,0.00024999,2]
[312899110,1706439038566,-168.036618,0.00025,2]
[312899111,1706439038576,-550.0,0.00025,3]
[312899112,1706439038585,-1903.74995284,0.00025,2]
[312899113,1706439038594,-304.11862422,0.00025,2]
[312899114,1706439038603,-2091.74532255,0.00025,2]
[312899116,1706439038616,-919.26787595,0.00025,2]
[312899118,1706439038625,-155.06,0.00025098,2]
[312899120,1706439038634,-255.54,0.00025116,2]
[312899122,1706439038643,-2000.0,0.00025239,2]
[312899124,1706439038652,-155.06,0.00025243,2]
[312899126,1706439038662,-1589.48873199,0.00025362,2]
[312899128,1706439038671,-274.2798696,0.00025362,2]
[312899130,1706439038680,-330.47565978,0.00025362,2]
[312899132,1706439038689,-202.79836122,0.00025363,2]
[312899134,1706439038699,-155.06,0.00025388,2]
[312899136,1706439038708,-218.16,0.000254,2]
[312899138,1706439038717,-155.06,0.00025534,2]
[312899140,1706439038726,-5280.81,0.00025627,2]
[312899142,1706439038735,-155.06,0.00025679,2]
[312899144,1706439038744,-155.06,0.00025824,2]
[312899146,1706439038753,-250.0,0.00025969,2]
[312899148,1706439038762,-155.06,0.0002597,2]
[312899149,1706439038772,-150.0,0.00026079,2]
[312899152,1706439038781,-151.2,0.00026095,2]
[312899153,1706439038790,-155.06,0.00026115,2]
[312899155,1706439038800,-155.06,0.0002626,2]
[312899157,1706439038809,-200.0,0.00026269,2]
[312899159,1706439038818,-500.0,0.00026348,2]
[312899162,1706439038827,-486.68,0.00026397,2]
[312899164,1706439038836,-155.06,0.00026405,2]
[312899166,1706439038845,-392.913,0.00026567,2]
[312899168,1706439038854,-451.639,0.00026567,2]
[312899170,1706439038863,-842.0,0.00026567,2]
[312899172,1706439038872,-8179.147,0.00026567,2]
[312899174,1706439038881,-1331.10297631,0.00026567,2]
[312899176,1706439038893,-813.24240312,0.00026567,2]
[312899476,1706439042368,165.59931597,0.00022404,2]
[312899477,1706439043184,-165.35062057,0.00026567,2]
[312899478,1706439043197,-4846.41887015,0.00026567,2]
[312899479,1706439043240,-2571.18412985,0.00026567,2]
[312899480,1706439043249,-2929.24,0.00026567,2]
[312899481,1706439043258,-1038.758,0.00026567,2]
[312899482,1706439043268,-269.783,0.00026567,2]
[312899483,1706439043278,-150.98,0.00026567,2]
[312899484,1706439043287,-150.852,0.00026567,2]
[312899485,1706439043297,-291.797,0.00026567,2]
[312899487,1706439043306,-150.431,0.00026567,2]
[312899489,1706439043315,-294.0,0.00026567,2]
[312899491,1706439043324,-600.0,0.00027,3]
[312899493,1706439043334,-166.68,0.00027275,2]
[312899494,1706439043343,-255.54,0.0002738,2]
[312899495,1706439043352,-151.2,0.00027464,2]
[312899496,1706439043361,-212.4,0.00027616,2]
[312899497,1706439043371,-175.08,0.00027671,2]
[312899498,1706439043381,-86.10832713,0.00027763,2]
[312899501,1706439047860,-243.45167287,0.00027763,2]
[312899502,1706439047870,-1008.82211059,0.00027954,2]
[312899503,1706439047879,-39620.6668733,0.00028,2]
[312899509,1706439086932,212.35424429,0.00020699,2]
[312899510,1706439090013,377.36674556,0.00020469,2]
[312899512,1706439113266,36163.61747866,0.00021689,2]
[312899534,1706439372269,5136.017165,0.00022468,2]
[312899547,1706439570394,-3196.50427923,0.00022572,2]
[312899548,1706439570419,-2324.38136054,0.00022573,2]
[312899549,1706439570438,-279.82822608,0.00022573,2]
[312899550,1706439570459,-1000.0,0.00022574,2]
[312899551,1706439570480,-300.0,0.00022582,2]
[312899552,1706439570500,-5854.28613415,0.00022583,2]
[312899554,1706439587689,1537.71000009,0.00022078,2]
[312899574,1706440232293,-1000.0,0.00022715,2]
[312899575,1706440232303,-101.18125251,0.00022716,2]
[312899576,1706440232315,-64.41806346,0.00022716,2]
[312899577,1706440232324,-500.0,0.00022816,2]
[312899578,1706440232334,-151.54160389,0.000229,2]
[312899579,1706440232343,-1038.82626247,0.000229,2]
[312899584,1706440238105,-4024.12769818,0.000229,2]
[312899585,1706440238160,-1017.66627,0.000229,2]
[312899586,1706440238215,-49474.37976935,0.000229,2]
[312899587,1706440238225,-516.325,0.000229,2]
[312899588,1706440238234,-218.33304999,0.000229,2]
[312899589,1706440238244,-165.59931597,0.000229,2]
[312899590,1706440238253,-1684.70387761,0.000229,2]
[312899591,1706440238262,-297.65063119,0.0002299,2]
[312899592,1706440238271,-1951.45234059,0.00022998,2]
[312899593,1706440238280,-243.39006042,0.00022999,2]
[312899594,1706440238289,-165.51841237,0.00022999,2]
[312899595,1706440238299,-5194.15728049,0.00023,2]
[312899596,1706440238646,-813.04,0.00023,2]
[312899803,1706440240689,-450258.78406967,0.00023,2]
[312899808,1706440240730,-644.77640894,0.00023,2]
[312899810,1706440240741,-1151.22618061,0.00023,2]
[312899816,1706440240785,-468.45299402,0.00023,2]
[312899878,1706440241428,-307.46014093,0.00023,2]
[312899937,1706440243109,-613.99623277,0.00023,2]
[312899950,1706440243328,-7651.00176756,0.00023,2]
[312899951,1706440243340,-1997.33903971,0.00023,2]
[312899975,1706440247353,-753.86176957,0.00022999,2]
[312899976,1706440247362,-74465.34528898,0.00023,2]
[312899977,1706440270765,409.17449916,0.00022999,10]
[312899993,1706441240800,273.87,0.00020809,2]
[312899995,1706441303376,2715.68,0.00022115,2]
[312899998,1706441397892,188.06,0.00022189,2]
[312900002,1706441432472,-311.2997495,0.00022615,2]
[312900003,1706441432527,-222.055657,0.00022615,2]
[312900004,1706441432537,-160.8,0.00022616,2]
[312900005,1706441432546,-279.444343,0.00022687,2]
[312900006,1706441432558,-223.555657,0.00022687,2]
[312900007,1706441432568,-370.64138861,0.000227,2]
[312900008,1706441432578,-111.28292559,0.00022769,2]
[312900023,1706441438267,-4247.13694899,0.00022769,2]
[312900024,1706441438277,-3013.92430134,0.0002277,2]
[312900025,1706441438286,-3197.33391284,0.00022796,2]
[312900026,1706441438295,-156.54152567,0.00022798,2]